[Event "Early-Titled-Tuesday-Blitz-October-10-2023"]
[Site "Chess.com"]
[Date "2023.10.10"]
[Round "2"]
[White "Man-Chuk"]
[Black "vedantgoswami"]
[Result "1-0"]
[WhiteElo "2739"]
[BlackElo "2392"]
[TimeControl "180+1"]
[EndTime "8:18:41 PDT"]
[Termination "Man-Chuk won on time"]

1. e4 {[%clk 0:03:00.9]} 1... e5 {[%clk 0:02:58.2]} 2. Nf3 {[%clk 0:02:53.2]}
2... Nc6 {[%clk 0:02:57.4]} 3. Bb5 {[%clk 0:02:53]} 3... a6 {[%clk 0:02:56.9]}
4. Ba4 {[%clk 0:02:52.8]} 4... Nf6 {[%clk 0:02:56.9]} 5. O-O {[%clk 0:02:53]}
5... b5 {[%clk 0:02:57.4]} 6. Bb3 {[%clk 0:02:52.8]} 6... Be7 {[%clk 0:02:58]}
7. a4 {[%clk 0:02:51.2]} 7... Rb8 {[%clk 0:02:55.4]} 8. d3 {[%clk 0:02:42.2]}
8... d6 {[%clk 0:02:55]} 9. h3 {[%clk 0:02:40.8]} 9... O-O {[%clk 0:02:53.7]}
10. Bd2 {[%clk 0:02:38.2]} 10... Be6 {[%clk 0:02:48.7]} 11. Bxe6 {[%clk
0:02:36]} 11... fxe6 {[%clk 0:02:48.4]} 12. Nc3 {[%clk 0:02:21.9]} 12... h6
{[%clk 0:02:41.8]} 13. axb5 {[%clk 0:02:21.9]} 13... axb5 {[%clk 0:02:41.4]} 14.
Ra6 {[%clk 0:02:03.2]} 14... Nb4 {[%clk 0:02:31.3]} 15. Ra5 {[%clk 0:02:02.5]}
15... c6 {[%clk 0:02:10.4]} 16. Ra7 {[%clk 0:02:02.4]} 16... c5 {[%clk 0:01:57]}
17. Ne2 {[%clk 0:02:02.4]} 17... Nc6 {[%clk 0:01:56]} 18. Ra6 {[%clk 0:02:02.4]}
18... Rb6 {[%clk 0:01:51.1]} 19. Ba5 {[%clk 0:01:55.3]} 19... Nxa5 {[%clk
0:01:49]} 20. Rxa5 {[%clk 0:01:56.2]} 20... Nh5 {[%clk 0:01:35.7]} 21. Ng3
{[%clk 0:01:38.4]} 21... Nf4 {[%clk 0:01:31.5]} 22. Kh2 {[%clk 0:01:29.1]} 22...
Bh4 {[%clk 0:01:26.3]} 23. Ra7 {[%clk 0:01:19.5]} 23... Qf6 {[%clk 0:01:13]} 24.
Nxh4 {[%clk 0:01:07.2]} 24... Qxh4 {[%clk 0:01:10.7]} 25. Qg4 {[%clk 0:01:06.9]}
25... Qxg4 {[%clk 0:01:08.2]} 26. hxg4 {[%clk 0:01:07.8]} 26... c4 {[%clk
0:00:52.8]} 27. Nh5 {[%clk 0:00:38.7]} 27... Rf7 {[%clk 0:00:49.3]} 28. Rxf7
{[%clk 0:00:36.1]} 28... Kxf7 {[%clk 0:00:48.9]} 29. Ra1 {[%clk 0:00:18.2]}
29... cxd3 {[%clk 0:00:46.8]} 30. Ra7+ {[%clk 0:00:16.3]} 30... Kf8 {[%clk
0:00:46.7]} 31. cxd3 {[%clk 0:00:14.9]} 31... Nxh5 {[%clk 0:00:46.3]} 32. gxh5
{[%clk 0:00:15.5]} 32... Rc6 {[%clk 0:00:44.3]} 33. Rd7 {[%clk 0:00:09.2]} 33...
Rc2 {[%clk 0:00:32]} 34. f3 {[%clk 0:00:09.6]} 34... Rxb2 {[%clk 0:00:29.6]} 35.
Rxd6 {[%clk 0:00:10]} 35... Ke7 {[%clk 0:00:29.9]} 36. Rb6 {[%clk 0:00:09.5]}
36... b4 {[%clk 0:00:29.4]} 37. Kg3 {[%clk 0:00:06.7]} 37... Kf6 {[%clk
0:00:28]} 38. Rb7 {[%clk 0:00:07]} 38... Rb1 {[%clk 0:00:26.9]} 39. Kg4 {[%clk
0:00:06.7]} 39... b3 {[%clk 0:00:24.9]} 40. g3 {[%clk 0:00:07.3]} 40... b2
{[%clk 0:00:24.2]} 41. Rb8 {[%clk 0:00:05.8]} 41... Kf7 {[%clk 0:00:23]} 42.
Rb7+ {[%clk 0:00:05.9]} 42... Kf6 {[%clk 0:00:23.1]} 43. Rb5 {[%clk 0:00:05.9]}
43... Rd1 {[%clk 0:00:19.2]} 44. Rxb2 {[%clk 0:00:05.8]} 44... Rxd3 {[%clk
0:00:19]} 45. Rb8 {[%clk 0:00:06.3]} 45... Rd2 {[%clk 0:00:16.7]} 46. Rb7 {[%clk
0:00:06.6]} 46... Rd3 {[%clk 0:00:15.8]} 47. f4 {[%clk 0:00:06.5]} 47... exf4
{[%clk 0:00:13]} 48. gxf4 {[%clk 0:00:07.4]} 48... e5 {[%clk 0:00:07.9]} 49.
Rb6+ {[%clk 0:00:07.6]} 49... Kf7 {[%clk 0:00:07]} 50. fxe5 {[%clk 0:00:07.8]}
50... Rd1 {[%clk 0:00:07.1]} 51. Rb7+ {[%clk 0:00:07.4]} 51... Kf8 {[%clk
0:00:04.8]} 52. Kf5 {[%clk 0:00:07.3]} 52... Rh1 {[%clk 0:00:02.7]} 53. Kg6
{[%clk 0:00:06.8]} 53... Rg1+ {[%clk 0:00:02.6]} 54. Kh7 {[%clk 0:00:07.2]}
54... Rg5 {[%clk 0:00:01.5]} 55. e6 {[%clk 0:00:05.8]} 1-0

[Event "Early-Titled-Tuesday-Blitz-October-10-2023"]
[Site "Chess.com"]
[Date "2023.10.10"]
[Round "2"]
[White "noblerone"]
[Black "cukin84"]
[Result "1-0"]
[WhiteElo "2471"]
[BlackElo "2195"]
[TimeControl "180+1"]
[EndTime "8:18:43 PDT"]
[Termination "noblerone won on time"]

1. d4 {[%clk 0:03:00.9]} 1... f5 {[%clk 0:02:59.2]} 2. Nf3 {[%clk 0:02:59.5]}
2... Nf6 {[%clk 0:02:58.7]} 3. Bf4 {[%clk 0:02:59.7]} 3... d6 {[%clk 0:02:57.6]}
4. e3 {[%clk 0:02:59.7]} 4... g6 {[%clk 0:02:57.9]} 5. h3 {[%clk 0:02:59.7]}
5... Bg7 {[%clk 0:02:58.1]} 6. c4 {[%clk 0:03:00.1]} 6... O-O {[%clk 0:02:58.1]}
7. Nc3 {[%clk 0:03:00.7]} 7... Qe8 {[%clk 0:02:58.1]} 8. Bh2 {[%clk 0:03:01.4]}
8... Nh5 {[%clk 0:02:56.6]} 9. Be2 {[%clk 0:03:01.5]} 9... e5 {[%clk 0:02:56.2]}
10. dxe5 {[%clk 0:02:59.3]} 10... dxe5 {[%clk 0:02:55.8]} 11. Bxe5 {[%clk
0:02:39.9]} 11... Bxe5 {[%clk 0:02:54.8]} 12. Qd5+ {[%clk 0:02:40.1]} 12... Be6
{[%clk 0:02:50.8]} 13. Qxe5 {[%clk 0:02:36]} 13... Nc6 {[%clk 0:02:50.1]} 14.
Qb5 {[%clk 0:02:32.6]} 14... a6 {[%clk 0:02:46.6]} 15. Qxb7 {[%clk 0:01:50.4]}
15... Rb8 {[%clk 0:02:45.2]} 16. Qxc7 {[%clk 0:01:28.1]} 16... Rxb2 {[%clk
0:02:43]} 17. O-O {[%clk 0:01:27.3]} 17... Rf7 {[%clk 0:02:39.6]} 18. Qd6 {[%clk
0:01:19.4]} 18... Qd7 {[%clk 0:01:58.7]} 19. Qxd7 {[%clk 0:01:12.6]} 19... Rxd7
{[%clk 0:01:58.2]} 20. Rfd1 {[%clk 0:01:07.8]} 20... Rdb7 {[%clk 0:01:55.3]} 21.
Ng5 {[%clk 0:01:01.8]} 21... Ng7 {[%clk 0:01:49.2]} 22. Nxe6 {[%clk 0:00:58.4]}
22... Nxe6 {[%clk 0:01:49.1]} 23. Bf3 {[%clk 0:00:59.3]} 23... Rc7 {[%clk
0:01:35.5]} 24. Rd6 {[%clk 0:00:43.3]} 24... Ned8 {[%clk 0:01:09.4]} 25. Rad1
{[%clk 0:00:30.4]} 25... Kf8 {[%clk 0:00:57.7]} 26. Rxd8+ {[%clk 0:00:26.8]}
26... Nxd8 {[%clk 0:00:57.1]} 27. Rxd8+ {[%clk 0:00:27.7]} 27... Ke7 {[%clk
0:00:57]} 28. Rd4 {[%clk 0:00:24.5]} 28... Ke6 {[%clk 0:00:50.8]} 29. Bd5+
{[%clk 0:00:23.6]} 29... Ke5 {[%clk 0:00:48.6]} 30. f4+ {[%clk 0:00:23.8]} 30...
Kf6 {[%clk 0:00:48.2]} 31. Rd1 {[%clk 0:00:18.1]} 31... Rc2 {[%clk 0:00:46.7]}
32. Rd3 {[%clk 0:00:18.6]} 32... g5 {[%clk 0:00:44.1]} 33. fxg5+ {[%clk
0:00:18.4]} 33... Kxg5 {[%clk 0:00:43.4]} 34. Kh2 {[%clk 0:00:18.5]} 34... h5
{[%clk 0:00:40.5]} 35. a4 {[%clk 0:00:18.3]} 35... Re7 {[%clk 0:00:38.1]} 36. c5
{[%clk 0:00:15.8]} 36... f4 {[%clk 0:00:35.6]} 37. exf4+ {[%clk 0:00:14.6]}
37... Kxf4 {[%clk 0:00:35.9]} 38. c6 {[%clk 0:00:12.7]} 38... Rg7 {[%clk
0:00:35.7]} 39. Bf3 {[%clk 0:00:11.2]} 39... Ke5 {[%clk 0:00:28.3]} 40. Rd7
{[%clk 0:00:11.4]} 40... Rg8 {[%clk 0:00:22.7]} 41. Ne2 {[%clk 0:00:10.7]} 41...
Rc8 {[%clk 0:00:19.9]} 42. Ng1 {[%clk 0:00:09.7]} 42... h4 {[%clk 0:00:16.4]}
43. Rh7 {[%clk 0:00:09.6]} 43... Rc4 {[%clk 0:00:12.4]} 44. a5 {[%clk
0:00:09.6]} 44... Kd6 {[%clk 0:00:11.7]} 45. Rh6+ {[%clk 0:00:09.4]} 45... Kc7
{[%clk 0:00:11.4]} 46. Ne2 {[%clk 0:00:10.1]} 46... Rc5 {[%clk 0:00:10.6]} 47.
Rxh4 {[%clk 0:00:10]} 47... Rxa5 {[%clk 0:00:10.2]} 48. Nd4 {[%clk 0:00:10.7]}
48... Re5 {[%clk 0:00:09]} 49. Rh7+ {[%clk 0:00:11.1]} 49... Kb6 {[%clk
0:00:08.3]} 50. Rb7+ {[%clk 0:00:11.4]} 50... Kc5 {[%clk 0:00:07.8]} 51. Ne2
{[%clk 0:00:10.1]} 51... Re6 {[%clk 0:00:06.1]} 52. Rb1 {[%clk 0:00:08.9]} 52...
a5 {[%clk 0:00:05.5]} 53. Nc3 {[%clk 0:00:08.7]} 53... Rexc6 {[%clk 0:00:02.3]}
54. Bxc6 {[%clk 0:00:07.7]} 54... Rxc6 {[%clk 0:00:02.6]} 55. Ne4+ {[%clk
0:00:07.3]} 55... Kd5 {[%clk 0:00:02.4]} 56. Nf2 {[%clk 0:00:07.3]} 56... a4
{[%clk 0:00:01.9]} 57. Ra1 {[%clk 0:00:07]} 57... Ra6 {[%clk 0:00:02]} 58. Nd3
{[%clk 0:00:07.5]} 58... Kd4 {[%clk 0:00:02.1]} 59. Nb4 {[%clk 0:00:06]} 59...
Ra5 {[%clk 0:00:01.9]} 60. Nc6+ {[%clk 0:00:06.3]} 1-0

[Event "Early-Titled-Tuesday-Blitz-October-10-2023"]
[Site "Chess.com"]
[Date "2023.10.10"]
[Round "2"]
[White "Riku-gan"]
[Black "BigAl"]
[Result "0-1"]
[WhiteElo "2837"]
[BlackElo "2600"]
[TimeControl "180+1"]
[EndTime "8:18:46 PDT"]
[Termination "BigAl won by resignation"]

1. Nc3 {[%clk 0:03:00.9]} 1... g6 {[%clk 0:02:18.2]} 2. d4 {[%clk 0:03:00.8]}
2... Bg7 {[%clk 0:02:19.1]} 3. e4 {[%clk 0:03:00.9]} 3... d6 {[%clk 0:02:19.9]}
4. f4 {[%clk 0:03:01.3]} 4... a6 {[%clk 0:02:18.9]} 5. Nf3 {[%clk 0:03:00.7]}
5... b5 {[%clk 0:02:19.7]} 6. Bd3 {[%clk 0:03:01.1]} 6... Nd7 {[%clk 0:02:18.8]}
7. a4 {[%clk 0:03:01.3]} 7... b4 {[%clk 0:02:19.3]} 8. Ne2 {[%clk 0:03:01.7]}
8... Bb7 {[%clk 0:02:18.9]} 9. O-O {[%clk 0:03:01.6]} 9... c5 {[%clk 0:02:18.3]}
10. c3 {[%clk 0:03:02]} 10... e6 {[%clk 0:02:16.8]} 11. Ng3 {[%clk 0:03:01]}
11... Ne7 {[%clk 0:02:17.5]} 12. Qe2 {[%clk 0:03:00.6]} 12... O-O {[%clk
0:02:13.3]} 13. Kh1 {[%clk 0:02:55.1]} 13... a5 {[%clk 0:02:10.8]} 14. f5 {[%clk
0:02:38.8]} 14... exf5 {[%clk 0:02:05.1]} 15. exf5 {[%clk 0:02:39.7]} 15... Nf6
{[%clk 0:01:58]} 16. Bg5 {[%clk 0:02:37.6]} 16... bxc3 {[%clk 0:01:50.8]} 17.
bxc3 {[%clk 0:02:37.3]} 17... cxd4 {[%clk 0:01:51.7]} 18. cxd4 {[%clk
0:02:38.2]} 18... Ned5 {[%clk 0:01:45.6]} 19. Qd2 {[%clk 0:02:31]} 19... Qd7
{[%clk 0:01:42.2]} 20. Bh6 {[%clk 0:02:29.3]} 20... Rfe8 {[%clk 0:01:38]} 21.
Qg5 {[%clk 0:02:28.9]} 21... Bxh6 {[%clk 0:01:05.5]} 22. Qxh6 {[%clk 0:02:29.8]}
22... Ng4 {[%clk 0:01:02.9]} 23. Qh4 {[%clk 0:02:26.9]} 23... Nde3 {[%clk
0:01:03.7]} 24. h3 {[%clk 0:02:03.4]} 24... Nxf1 {[%clk 0:00:59.7]} 25. Rxf1
{[%clk 0:02:02.2]} 25... Ne3 {[%clk 0:00:59.5]} 26. Ng5 {[%clk 0:01:51.1]} 26...
f6 {[%clk 0:00:59.2]} 27. N5e4 {[%clk 0:01:47.2]} 27... Bxe4 {[%clk 0:00:54.9]}
28. Nxe4 {[%clk 0:01:48.1]} 28... Rxe4 {[%clk 0:00:55.1]} 29. Bxe4 {[%clk
0:01:46.2]} 29... Nxf1 {[%clk 0:00:53]} 30. Bxa8 {[%clk 0:01:46.3]} 30... Qxf5
{[%clk 0:00:53.3]} 31. Kg1 {[%clk 0:01:41.5]} 31... Ne3 {[%clk 0:00:47]} 32. Qe1
{[%clk 0:01:40.5]} 32... Qd3 {[%clk 0:00:44.6]} 33. Bd5+ {[%clk 0:01:35.8]}
33... Kg7 {[%clk 0:00:44.7]} 34. Qxa5 {[%clk 0:01:29.5]} 34... Qxd4 {[%clk
0:00:30.8]} 35. Qc7+ {[%clk 0:01:26.4]} 35... Kh6 {[%clk 0:00:31.1]} 36. Qc1
{[%clk 0:00:55.2]} 36... g5 {[%clk 0:00:26.6]} 37. Bc6 {[%clk 0:00:51]} 37...
Ng4+ {[%clk 0:00:10.7]} 38. Kh1 {[%clk 0:00:51.3]} 38... Nf2+ {[%clk 0:00:10.3]}
39. Kh2 {[%clk 0:00:50.4]} 39... Nd3 {[%clk 0:00:04.3]} 40. Qf1 {[%clk
0:00:42.3]} 40... Qe5+ {[%clk 0:00:05.2]} 41. Kh1 {[%clk 0:00:40.5]} 41... Nf4
{[%clk 0:00:06.1]} 42. Bf3 {[%clk 0:00:38.8]} 42... d5 {[%clk 0:00:07]} 43. a5
{[%clk 0:00:38.3]} 43... d4 {[%clk 0:00:07.7]} 44. a6 {[%clk 0:00:38.8]} 44...
Qa5 {[%clk 0:00:08.1]} 45. g3 {[%clk 0:00:37.9]} 45... Ng6 {[%clk 0:00:08.9]}
46. Qd3 {[%clk 0:00:33.2]} 46... Ne5 {[%clk 0:00:09.5]} 47. Qf1 {[%clk
0:00:08.3]} 47... d3 {[%clk 0:00:09.1]} 48. Be4 {[%clk 0:00:07.5]} 48... d2
{[%clk 0:00:09.3]} 49. Qxf6+ {[%clk 0:00:08]} 49... Kh5 {[%clk 0:00:09.1]} 50.
g4+ {[%clk 0:00:08.1]} 50... Kh4 {[%clk 0:00:09.5]} 51. Qh6+ {[%clk 0:00:08.3]}
51... Kg3 {[%clk 0:00:10.4]} 52. Bc2 {[%clk 0:00:08.3]} 52... Qa1+ {[%clk
0:00:10.4]} 0-1

[Event "Early-Titled-Tuesday-Blitz-October-10-2023"]
[Site "Chess.com"]
[Date "2023.10.10"]
[Round "2"]
[White "borocotoajua"]
[Black "GMKrikor"]
[Result "0-1"]
[WhiteElo "2585"]
[BlackElo "2864"]
[TimeControl "180+1"]
[EndTime "8:18:47 PDT"]
[Termination "GMKrikor won by resignation"]

1. d4 {[%clk 0:02:59.8]} 1... Nf6 {[%clk 0:02:58.9]} 2. Nf3 {[%clk 0:02:59.7]}
2... g6 {[%clk 0:02:59]} 3. c4 {[%clk 0:02:59.9]} 3... Bg7 {[%clk 0:02:59.3]} 4.
g3 {[%clk 0:03:00.2]} 4... d5 {[%clk 0:02:59.1]} 5. cxd5 {[%clk 0:02:53.1]} 5...
Nxd5 {[%clk 0:03:00]} 6. Bg2 {[%clk 0:02:53.6]} 6... Nb6 {[%clk 0:03:00.2]} 7.
O-O {[%clk 0:02:52.5]} 7... Nc6 {[%clk 0:03:00.1]} 8. e3 {[%clk 0:02:47.5]} 8...
e5 {[%clk 0:03:00.6]} 9. Nc3 {[%clk 0:02:40.5]} 9... exd4 {[%clk 0:03:00.1]} 10.
exd4 {[%clk 0:02:41.4]} 10... O-O {[%clk 0:03:00.3]} 11. Bg5 {[%clk 0:02:28.5]}
11... Qd7 {[%clk 0:02:59.9]} 12. Qb3 {[%clk 0:02:20.3]} 12... h6 {[%clk
0:02:53]} 13. Be3 {[%clk 0:02:13.8]} 13... Na5 {[%clk 0:02:53.3]} 14. Qc2 {[%clk
0:02:10]} 14... Nac4 {[%clk 0:02:53.3]} 15. Rad1 {[%clk 0:02:09.4]} 15... Nxe3
{[%clk 0:02:53]} 16. fxe3 {[%clk 0:02:10.3]} 16... Qe7 {[%clk 0:02:49.1]} 17.
Rfe1 {[%clk 0:02:03.4]} 17... Bf5 {[%clk 0:02:48]} 18. e4 {[%clk 0:02:00.9]}
18... Bg4 {[%clk 0:02:48.1]} 19. e5 {[%clk 0:01:38]} 19... Rad8 {[%clk
0:02:46.8]} 20. h3 {[%clk 0:01:37.3]} 20... Bxf3 {[%clk 0:02:12.6]} 21. Bxf3
{[%clk 0:01:38.2]} 21... c6 {[%clk 0:02:00.6]} 22. Qf2 {[%clk 0:01:38]} 22... h5
{[%clk 0:01:49.9]} 23. Re2 {[%clk 0:01:32.7]} 23... h4 {[%clk 0:01:36.9]} 24.
gxh4 {[%clk 0:01:28.5]} 24... Qb4 {[%clk 0:01:17.9]} 25. h5 {[%clk 0:01:20.2]}
25... Nc4 {[%clk 0:01:06.9]} 26. hxg6 {[%clk 0:01:11.7]} 26... fxg6 {[%clk
0:01:07.8]} 27. e6 {[%clk 0:00:48.3]} 27... Qe7 {[%clk 0:00:33.5]} 28. d5 {[%clk
0:00:25.2]} 28... Ne5 {[%clk 0:00:33.7]} 29. Rxe5 {[%clk 0:00:20.9]} 29... Bxe5
{[%clk 0:00:33.4]} 30. Qg2 {[%clk 0:00:21.6]} 30... Kg7 {[%clk 0:00:29.7]} 31.
Be4 {[%clk 0:00:17.6]} 31... Qf6 {[%clk 0:00:27.5]} 32. e7 {[%clk 0:00:16.6]}
32... Qxe7 {[%clk 0:00:20.3]} 33. Qxg6+ {[%clk 0:00:16.6]} 33... Kh8 {[%clk
0:00:21.1]} 34. Qh5+ {[%clk 0:00:12.7]} 34... Kg8 {[%clk 0:00:19.9]} 35. Rd2
{[%clk 0:00:12.9]} 35... Rf7 {[%clk 0:00:09.7]} 36. Rg2+ {[%clk 0:00:11.4]}
36... Kf8 {[%clk 0:00:10.3]} 37. Qh6+ {[%clk 0:00:09.9]} 37... Bg7 {[%clk
0:00:10.4]} 38. Qh5 {[%clk 0:00:07.1]} 38... Qf6 {[%clk 0:00:10]} 39. Bg6 {[%clk
0:00:06.7]} 39... Qf1+ {[%clk 0:00:07.4]} 40. Kh2 {[%clk 0:00:07.4]} 40... Be5+
{[%clk 0:00:08]} 41. Qxe5 {[%clk 0:00:07.2]} 41... Qf4+ {[%clk 0:00:04.7]} 42.
Qxf4 {[%clk 0:00:07]} 42... Rxf4 {[%clk 0:00:05.6]} 43. dxc6 {[%clk 0:00:06.5]}
43... bxc6 {[%clk 0:00:06.5]} 44. Bc2 {[%clk 0:00:05.7]} 44... Ke7 {[%clk
0:00:06]} 45. Bb3 {[%clk 0:00:06.2]} 45... c5 {[%clk 0:00:05.6]} 46. Re2+ {[%clk
0:00:06.7]} 46... Kf8 {[%clk 0:00:05.5]} 47. Nd5 {[%clk 0:00:06.5]} 47... Rd4
{[%clk 0:00:05.8]} 48. Rf2+ {[%clk 0:00:06.3]} 48... Kg7 {[%clk 0:00:05.7]} 49.
Ne7 {[%clk 0:00:06.1]} 49... Rd2 {[%clk 0:00:04.5]} 50. Nf5+ {[%clk 0:00:06.4]}
50... Kf6 {[%clk 0:00:04.7]} 51. Rxd2 {[%clk 0:00:05.2]} 51... Rxd2+ {[%clk
0:00:05.6]} 52. Kg3 {[%clk 0:00:06]} 52... Kxf5 {[%clk 0:00:06.1]} 53. h4 {[%clk
0:00:05.5]} 53... Rxb2 {[%clk 0:00:06]} 54. h5 {[%clk 0:00:06.2]} 54... Kg5
{[%clk 0:00:06.5]} 55. Bf7 {[%clk 0:00:05.6]} 55... Rb7 {[%clk 0:00:03.8]} 56.
Bg6 {[%clk 0:00:05.5]} 56... c4 {[%clk 0:00:04.2]} 57. Kf3 {[%clk 0:00:05.7]}
57... Rd7 {[%clk 0:00:04.6]} 58. Ke2 {[%clk 0:00:05.5]} 58... c3 {[%clk
0:00:05.3]} 59. Be4 {[%clk 0:00:04.7]} 59... Re7 {[%clk 0:00:04.2]} 60. Kd3
{[%clk 0:00:04]} 60... Rxe4 {[%clk 0:00:04.9]} 61. Kxe4 {[%clk 0:00:04.9]} 61...
c2 {[%clk 0:00:05.2]} 0-1

[Event "Early-Titled-Tuesday-Blitz-October-10-2023"]
[Site "Chess.com"]
[Date "2023.10.10"]
[Round "2"]
[White "Vladimir_Zakhartsov"]
[Black "SanchezKelvin"]
[Result "1-0"]
[WhiteElo "2836"]
[BlackElo "2579"]
[TimeControl "180+1"]
[EndTime "8:18:48 PDT"]
[Termination "Vladimir_Zakhartsov won by resignation"]

1. d4 {[%clk 0:03:00.9]} 1... d5 {[%clk 0:02:59.5]} 2. c4 {[%clk 0:03:00.2]}
2... c6 {[%clk 0:02:59.4]} 3. Nf3 {[%clk 0:02:59.3]} 3... Nf6 {[%clk 0:02:59.3]}
4. Nc3 {[%clk 0:02:58.9]} 4... e6 {[%clk 0:02:59.3]} 5. Qd3 {[%clk 0:02:54.4]}
5... Bb4 {[%clk 0:02:57.4]} 6. a3 {[%clk 0:02:44.3]} 6... Ba5 {[%clk 0:02:47.1]}
7. b4 {[%clk 0:02:39.6]} 7... Bc7 {[%clk 0:02:45.9]} 8. Bg5 {[%clk 0:02:32.3]}
8... Nbd7 {[%clk 0:02:44.6]} 9. e4 {[%clk 0:02:28.2]} 9... dxe4 {[%clk
0:02:44.1]} 10. Nxe4 {[%clk 0:02:28.2]} 10... h6 {[%clk 0:02:42]} 11. Bh4 {[%clk
0:02:24.3]} 11... a5 {[%clk 0:02:26.3]} 12. Rb1 {[%clk 0:02:23.8]} 12... axb4
{[%clk 0:02:26.2]} 13. axb4 {[%clk 0:02:24.7]} 13... b5 {[%clk 0:02:10.2]} 14.
c5 {[%clk 0:01:45.1]} 14... g5 {[%clk 0:02:07.4]} 15. Bg3 {[%clk 0:01:44.2]}
15... Nd5 {[%clk 0:02:00.1]} 16. Nd6+ {[%clk 0:01:24.3]} 16... Bxd6 {[%clk
0:01:57.6]} 17. Bxd6 {[%clk 0:01:25.2]} 17... Ra4 {[%clk 0:01:48.9]} 18. Be2
{[%clk 0:01:18.6]} 18... Nxb4 {[%clk 0:01:40.4]} 19. Qd2 {[%clk 0:01:00.1]}
19... Nd5 {[%clk 0:01:39.5]} 20. O-O {[%clk 0:00:55.7]} 20... Qa5 {[%clk
0:01:38.5]} 21. Qd3 {[%clk 0:00:37.8]} 21... b4 {[%clk 0:01:21.8]} 22. Ne5
{[%clk 0:00:32]} 22... Nxe5 {[%clk 0:01:14.1]} 23. Bxe5 {[%clk 0:00:32]} 23...
O-O {[%clk 0:00:47.2]} 24. Qh3 {[%clk 0:00:27.2]} 24... Kh7 {[%clk 0:00:42.7]}
25. Bd3+ {[%clk 0:00:24]} 25... f5 {[%clk 0:00:41.8]} 26. f4 {[%clk 0:00:22.6]}
26... gxf4 {[%clk 0:00:19.1]} 27. Bc4 {[%clk 0:00:20.7]} 27... Ra3 {[%clk
0:00:17.7]} 28. Qh4 {[%clk 0:00:20.6]} 28... Qd8 {[%clk 0:00:17.6]} 29. Qxd8
{[%clk 0:00:17.2]} 29... Rxd8 {[%clk 0:00:17.5]} 30. Bxd5 {[%clk 0:00:17.8]}
30... Rxd5 {[%clk 0:00:17.8]} 31. Rxb4 {[%clk 0:00:18.1]} 31... Ba6 {[%clk
0:00:15.4]} 32. Rxf4 {[%clk 0:00:13.2]} 32... Ra1+ {[%clk 0:00:15.2]} 33. Kf2
{[%clk 0:00:13.4]} 33... Rf1+ {[%clk 0:00:15.6]} 34. Kg3 {[%clk 0:00:13.3]}
34... Rxf4 {[%clk 0:00:15.9]} 35. Kxf4 {[%clk 0:00:14.2]} 35... Bb5 {[%clk
0:00:16.4]} 36. Rb3 {[%clk 0:00:13.5]} 36... Rd7 {[%clk 0:00:16.6]} 37. Ra3
{[%clk 0:00:11.6]} 37... Bc4 {[%clk 0:00:14.6]} 38. Ra8 {[%clk 0:00:11.1]} 38...
Kg6 {[%clk 0:00:14.4]} 39. Rf8 {[%clk 0:00:08.7]} 39... Kh5 {[%clk 0:00:13.8]}
40. Rf6 {[%clk 0:00:07.1]} 40... Ra7 {[%clk 0:00:12.5]} 41. h3 {[%clk
0:00:06.9]} 41... Be2 {[%clk 0:00:09.9]} 42. Rxe6 {[%clk 0:00:05.7]} 42... Ra2
{[%clk 0:00:08.9]} 43. Rxc6 {[%clk 0:00:05.5]} 43... Bd1 {[%clk 0:00:08.7]} 44.
Kxf5 {[%clk 0:00:05.1]} 44... Rxg2 {[%clk 0:00:07.8]} 45. Bf4 {[%clk 0:00:04.6]}
45... Bc2+ {[%clk 0:00:06.6]} 46. Ke5 {[%clk 0:00:04.9]} 46... Re2+ {[%clk
0:00:05.5]} 47. Kd6 {[%clk 0:00:04.5]} 47... Be4 {[%clk 0:00:04.6]} 48. Rc7
{[%clk 0:00:04.4]} 48... Rd2 {[%clk 0:00:04.4]} 49. Bxd2 {[%clk 0:00:04.3]}
49... Bg2 {[%clk 0:00:04.5]} 50. Re7 {[%clk 0:00:05.2]} 1-0